bitfinex-derivatives/quotes_ETHF0:USTF0_20250919
["timestamp","ask_amount","ask_price","bid_price","bid_amount"]
[1758303652142,1.0293,4464.4,4464.3,1.42089]
[1758303652845,1.0293,4464.4,4464.3,1.12599]
[1758303653740,1.77584121,4464.4,4464.3,0.99769]
[1758303653934,1.77584121,4464.4,4464.3,1.42089]
[1758303654138,1.77584121,4464.4,4464.3,0.40299]
[1758303654537,1.77584121,4464.4,4464.3,1.12599]
[1758303654746,1.77584121,4464.4,4464.3,1.42089]
[1758303656045,0.74654121,4464.4,4464.3,1.42089]
[1758303656244,0.74242778,4464.4,4464.3,1.42089]
[1758303656753,3.7953,4465.4,4465.3,0.7027]
[1758303656947,0.8155,4465.4,4465.3,1.1259]
[1758303657245,0.8155,4465.4,4465.3,1.4208]
[1758303657446,1.2573,4465.4,4465.3,1.4208]
[1758303657847,1.0293,4465.4,4465.3,1.4208]
[1758303658047,1.2573,4465.4,4465.3,1.4208]
[1758303658447,1.0293,4465.4,4465.3,1.4208]
[1758303659050,0.2892,4465.4,4465.3,1.4208]
[1758303659249,0.4109,4465.7,4465.3,1.43046]
[1758303659441,3.2078,4466.1,4465.9,1.41835]
[1758303659442,0.5707,4466.0,4465.9,1.41835]
[1758303659947,0.9816,4466.0,4465.9,1.41835]
[1758303660349,0.2792,4466.0,4465.9,4.62615]
[1758303660943,0.4109,4466.3,4466.2,1.41832]
[1758303660944,0.9816,4466.3,4466.2,1.41832]
[1758303661943,4.1894,4466.8,4466.7,0.70378]
[1758303662149,4.4174,4466.8,4466.7,1.41828]
[1758303662347,1.2096,4466.8,4466.7,1.41828]
[1758303663551,0.9816,4466.8,4466.7,1.41828]
[1758303664949,0.2792,4466.8,4466.7,1.41828]
[1758303665347,0.4109,4467.5,4467.4,0.99722]
[1758303665551,1.1606,4468.0,4467.9,1.41817]
[1758303666450,1.3886,4468.0,4467.9,0.40267]
[1758303666758,1.3886,4468.0,4467.5,0.421]
[1758303666955,0.179,4467.5,4467.4,0.40271]
[1758303667158,1.3886,4467.5,4467.4,0.40271]
[1758303668055,1.3886,4467.5,4467.4,0.99721]
[1758303668257,0.9181,4467.8,4467.7,0.99719]
[1758303668458,1.2096,4467.8,4467.7,0.70369]
[1758303668757,1.4289952,4467.8,4467.7,0.40269]
[1758303669858,1.4289952,4467.8,4467.7,0.70369]
[1758303670452,1.2009952,4467.8,4467.7,0.99719]
[1758303670756,0.179,4469.5,4467.7,0.99719]
[1758303670757,0.5707,4469.2,4469.1,1.0155]
[1758303670961,0.8007,4469.2,4469.1,4.2233]
[1758303671261,0.8007,4469.2,4469.1,4.33236]
[1758303671856,0.8007,4469.2,4469.1,1.12456]
[1758303672661,1.1768,4469.2,4469.1,1.12456]
[1758303673855,0.5707,4469.2,4469.1,1.41806]
[1758303674057,1.1758,4469.2,4469.1,0.421]
[1758303675366,1.1758,4469.2,4469.1,0.722]
[1758303682576,1.39166353,4469.2,4469.1,0.722]
[1758303683165,1.39166353,4469.2,4468.9,0.4433]
[1758303683370,1.39166353,4469.2,4468.9,0.0223]
[1758303683371,0.9468,4469.0,4468.9,0.0223]
[1758303683573,1.16266353,4469.0,4468.9,0.0223]
[1758303683773,0.78656353,4469.0,4468.6,3.61041]
[1758303683971,0.5707,4468.8,4468.7,0.722]
[1758303684170,1.15168864,4468.8,4468.7,1.1246]
[1758303684477,0.77558864,4468.8,4468.7,1.4181]
[1758303684777,0.2792,4469.1,4469.0,1.58807]
[1758303684972,0.48409088,4469.1,4469.0,1.58807]
[1758303685172,0.97994817,4469.1,4469.0,1.58808]
[1758303685474,1.20894817,4469.1,4469.0,1.58808]
[1758303685778,0.70074817,4469.1,4469.0,1.58808]
[1758303686877,0.20489088,4469.1,4469.0,1.58808]
[1758303687478,0.48409088,4469.1,4469.0,1.58808]
[1758303687679,1.27258797,4469.1,4469.0,1.1855]
[1758303687877,1.64868797,4469.1,4469.0,0.892]
[1758303688077,1.64868797,4469.1,4469.0,0.722]
[1758303688280,1.64868797,4469.1,4469.0,0.421]
[1758303690067,1.64868797,4469.1,4469.0,1.12457]
[1758303690271,1.27258797,4469.1,4469.0,1.57457]
[1758303690874,1.27258797,4469.1,4469.0,1.172]
[1758303691378,1.66638797,4469.1,4469.0,0.8891]
[1758303691574,1.66638797,4469.1,4469.0,0.722]
[1758303692180,1.66638797,4469.1,4469.0,1.12457]
[1758303692577,1.66638797,4469.1,4469.0,1.29167]
[1758303692879,1.66638797,4469.1,4469.0,0.8891]
[1758303693281,1.66638797,4469.1,4469.0,0.421]
[1758303694682,1.27258797,4469.1,4469.0,1.1678]
[1758303694878,0.70188797,4469.1,4469.0,1.57037]
[1758303695081,0.93088797,4469.1,4469.0,1.57037]
[1758303696284,0.70188797,4469.1,4469.0,1.57037]
[1758303697583,0.70188797,4469.1,4469.0,5.57037]
[1758303699285,0.70188797,4469.1,4469.0,1.57037]
[1758303699481,0.5,4470.0,4469.9,0.4163]
[1758303699687,0.5,4470.0,4469.9,0.996]
[1758303700083,0.7859,4470.0,4469.9,0.996]
[1758303702784,1.4873,4470.0,4469.9,0.4163]
[1758303703088,1.4873,4470.0,4469.9,0.81879]
[1758303703287,1.4873,4470.0,4469.9,1.11559]
[1758303703587,1.4873,4470.0,4469.8,3.6241]
[1758303703588,0.9873,4469.9,4469.8,3.6241]
[1758303703981,0.9873,4469.9,4469.6,0.40251]
[1758303704184,1.2153,4469.8,4469.7,0.40251]
[1758303704690,1.2153,4469.8,4469.7,0.81881]
[1758303704891,1.2153,4469.8,4469.5,0.56962]
[1758303705088,0.3076,4469.6,4469.5,0.40252]
[1758303705295,0.9873,4469.6,4469.5,0.81882]
[1758303706699,0.3938,4469.5,4469.3,3.2078]
[1758303706897,0.5935,4469.4,4469.3,3.90714]
[1758303707094,0.5935,4469.4,4469.3,4.60634]
[1758303708100,0.2859,4469.4,4469.3,4.60634]
[1758303708898,0.5139,4469.4,4469.3,4.60634]
[1758303709501,0.228,4469.4,4469.3,4.60634]
[1758303709900,0.8215,4469.4,4469.3,4.2038]
[1758303710403,0.8215,4469.4,4469.3,4.60634]
[1758303710898,1.2153,4469.4,4469.3,4.2038]
[1758303711103,1.2153,4469.4,4469.3,3.9209]
[1758303711300,1.2153,4469.4,4469.3,0.7131]
[1758303711502,1.91840423,4469.4,4469.3,0.7131]
[1758303711805,1.52460423,4469.4,4469.3,1.39855]
[1758303712203,0.70310423,4469.4,4469.3,1.39855]
[1758303712406,0.93110423,4469.4,4469.3,1.39855]
[1758303713105,0.70310423,4469.4,4469.3,1.39855]
[1758303714104,0.70310423,4469.4,4469.3,4.60635]
[1758303716802,0.5,4470.0,4469.9,0.40249]
[1758303717003,0.94008584,4470.0,4469.9,4.60629]
[1758303717309,1.4419657,4470.0,4469.9,4.2038]
[1758303717500,1.7278657,4470.0,4469.9,4.2038]
[1758303717903,1.7278657,4470.0,4469.9,4.60629]
[1758303719111,1.2139657,4470.0,4469.9,4.60629]
[1758303726018,1.5026657,4470.0,4469.9,4.2038]
[1758303726412,1.7808657,4470.0,4469.9,4.2038]
[1758303726613,2.1662657,4470.0,4469.9,4.2038]
[1758303726919,2.1662657,4470.0,4469.9,3.9209]
[1758303727820,1.7808657,4470.0,4469.9,4.2182]
[1758303728515,2.1662657,4470.0,4469.9,4.2182]
[1758303728715,2.1662657,4470.0,4469.9,0.4163]
[1758303728915,2.1662657,4470.0,4469.6,0.4362]
[1758303729111,0.5669,4469.7,4469.4,0.4362]
[1758303729314,0.9523,4469.5,4469.4,0.4362]
[1758303729511,1.6662657,4469.5,4469.4,0.4362]
[1758303730315,0.9523,4469.2,4469.1,0.4585]
[1758303730514,1.6662657,4469.2,4469.1,0.7357]
[1758303730714,1.6662657,4469.2,4469.1,0.4362]
[1758303731719,0.9523,4468.9,4468.8,3.2078]
[1758303731912,0.5669,4468.7,4468.6,0.4362]
[1758303732111,1.8942657,4468.7,4468.6,0.7134]
[1758303732512,1.2808657,4468.7,4468.6,1.0107]
[1758303732715,1.8942657,4468.7,4468.4,0.4362]
[1758303732921,0.9523,4468.5,4468.4,0.4362]
[1758303733116,1.6662657,4468.5,4468.4,0.7134]
[1758303733923,1.6662657,4468.5,4468.4,0.4362]
[1758303735020,1.6662657,4468.5,4468.4,0.7134]
[1758303735216,1.45417986,4468.5,4468.4,0.7134]
[1758303735523,1.303924,4468.5,4468.4,1.0107]
[1758303735724,0.965024,4468.5,4468.4,1.0107]
[1758303736719,1.253724,4468.5,4468.4,1.0107]
[1758303737519,1.917324,4468.5,4468.4,1.0107]
[1758303737730,1.917324,4468.5,4468.4,0.4362]
[1758303739024,1.531924,4468.5,4468.2,0.4585]
[1758303739227,0.9523,4468.3,4468.2,0.7357]
[1758303739414,1.303924,4468.3,4468.2,1.43563]
[1758303739619,1.025724,4468.3,4468.2,1.41333]
[1758303739917,1.025724,4468.3,4468.2,1.0107]
[1758303739918,1.253724,4468.3,4468.2,1.0107]
[1758303740124,0.965024,4468.3,4468.2,4.62113]
[1758303740325,0.737024,4468.3,4468.2,4.62113]
[1758303740524,0.23514414,4468.3,4468.2,4.62113]
[1758303741516,0.3854,4469.5,4469.0,0.1679]
[1758303741722,0.9523,4469.5,4469.4,0.7134]
[1758303741916,1.69132112,4469.5,4469.4,0.7134]
[1758303742723,1.46332112,4469.5,4469.4,0.7134]
[1758303742924,1.69132112,4469.5,4469.4,0.7134]
[1758303743328,1.69132112,4469.5,4469.4,0.4362]
[1758303743531,5.80752112,4469.5,4469.2,0.0223]
[1758303743722,0.2887,4469.3,4469.2,0.0223]
[1758303744026,1.46332112,4469.3,4469.2,0.0223]
[1758303744627,1.46332112,4469.3,4468.8,3.644]
[1758303744628,1.07792112,4469.3,4468.8,3.2078]
[1758303744820,0.5669,4469.0,4468.9,0.4362]
[1758303745022,1.69132112,4469.0,4468.9,0.7134]
[1758303745425,1.69132112,4469.0,4468.9,0.4362]
[1758303751531,1.69132112,4469.0,4468.9,0.7171]
[1758303751722,1.30592112,4469.0,4468.9,1.0068]
[1758303752434,1.67852112,4469.0,4468.9,1.0068]
[1758303752827,1.30592112,4469.0,4468.9,1.0068]
[1758303753223,1.67852112,4469.0,4468.7,0.0223]
[1758303753429,0.9222,4468.8,4468.7,0.4623]
[1758303753629,1.67180692,4468.8,4468.7,0.4623]
[1758303753828,1.67180692,4468.8,4468.7,0.7209]
[1758303754030,1.29920692,4468.8,4468.7,1.0106]
[1758303756536,1.29920692,4468.8,4468.7,1.41319]
[1758303762932,1.67180692,4468.8,4468.7,1.0106]
[1758303763337,1.29920692,4468.8,4468.7,1.0106]
[1758303763737,1.30377989,4468.8,4468.7,1.0106]
[1758303764239,1.30377989,4468.8,4468.7,1.4132]
[1758303764537,0.75417989,4468.8,4468.7,1.4132]
[1758303764737,0.98217989,4468.8,4468.7,1.4132]
[1758303766837,0.75417989,4468.8,4468.7,1.4132]
[1758303767038,0.98217989,4468.8,4468.7,1.4132]
[1758303767941,0.75417989,4468.8,4468.7,1.4132]
[1758303768142,0.98217989,4468.8,4468.7,1.4132]
[1758303769530,0.75417989,4468.8,4468.7,1.4132]
[1758303769732,0.98217989,4468.8,4468.7,1.4132]
[1758303771639,1.25557989,4468.8,4468.7,1.4132]
[1758303773847,0.75417989,4468.8,4468.7,1.4132]
[1758303774047,0.98217989,4468.8,4468.7,1.4132]
[1758303774544,0.75417989,4468.8,4468.7,1.4132]
[1758303776549,1.02757989,4468.8,4468.7,1.4132]
[1758303777143,1.30377989,4468.8,4468.7,1.4132]
[1758303777446,1.67637989,4468.8,4468.7,0.44]
[1758303778446,1.67637989,4468.8,4468.7,0.8426]
[1758303778948,1.67637989,4468.8,4468.7,1.1235]
[1758303780345,0.75417989,4468.8,4468.7,1.41]
[1758303783353,36.261,4469.7,4469.6,0.9981]
[1758303783553,36.7735,4469.7,4469.6,0.9981]
[1758303783752,0.5125,4469.7,4469.6,0.9981]
[1758303784151,0.5704,4469.7,4469.6,1.40062]
[1758303784357,0.7984,4469.7,4469.6,1.40062]
[1758303786555,3.4923,4469.9,4469.8,0.9981]
[1758303786756,3.7203,4469.9,4469.8,0.9981]
[1758303786957,4.0062,4469.9,4469.8,0.9981]
[1758303787158,4.3628,4469.9,4469.8,0.9981]
[1758303787456,4.3628,4469.9,4469.8,0.704]
[1758303787652,4.3628,4469.9,4469.8,0.4313]
[1758303788248,0.3566,4469.8,4469.4,0.0223]
[1758303788551,0.927,4469.5,4469.4,0.0223]
[1758303788758,0.927,4469.5,4469.4,0.4536]
[1758303788759,1.155,4469.5,4469.4,0.4536]
[1758303788962,1.155,4469.5,4469.4,0.4313]
[1758303789260,1.155,4469.5,4469.4,0.704]
[1758303789455,1.155,4469.5,4467.0,0.1658]
[1758303789456,0.5948,4467.6,4467.0,0.1658]
[1758303789761,0.2266,4467.0,4466.9,0.9981]
[1758303789957,3.661,4467.6,4467.5,0.8698]
[1758303790455,3.4358,4467.6,4467.5,1.1639]
[1758303790659,0.228,4467.6,4467.5,1.1639]
[1758303790859,0.6812,4467.6,4467.5,1.1639]
[1758303792354,0.4546,4467.6,4467.5,1.1639]
[1758303793561,0.6812,4467.6,4467.5,1.1639]
[1758303795363,0.93800634,4467.6,4467.5,1.1639]
[1758303795558,0.71140634,4467.6,4467.5,1.1639]
[1758303795760,0.48480634,4467.6,4467.5,1.1639]
[1758303796261,0.25680634,4467.6,4467.5,1.1639]
[1758303797766,0.25669311,4467.6,4467.5,1.1639]
[1758303799661,0.48469311,4467.6,4467.5,1.1639]
[1758303800667,0.2845,4469.6,4469.5,1.1639]
[1758303801066,0.2845,4469.6,4469.5,0.7326]
[1758303801269,0.7994,4469.6,4469.5,0.7326]
[1758303801462,1.1977,4469.6,4469.5,0.7326]
[1758303801661,1.1977,4469.6,4469.5,1.1639]
[1758303802067,0.7994,4469.6,4469.5,1.1639]
[1758303803665,1.71960649,4469.6,4469.5,1.1639]
[1758303803867,1.71960649,4469.6,4469.5,0.8698]
[1758303806362,1.32130649,4469.6,4469.5,1.1639]
[1758303808668,1.03540649,4469.6,4469.5,1.1639]
[1758303809066,0.75090649,4469.6,4469.5,1.1639]
[1758303809272,1.04760649,4469.6,4469.5,1.1639]
[1758303809574,1.75570649,4469.6,4469.5,1.1639]
[1758303810170,1.75570649,4469.6,4469.5,0.8698]
[1758303812577,2.00816245,4469.6,4469.5,0.8698]
[1758303812775,2.00816267,4469.6,4469.5,0.8698]
[1758303814481,2.00816267,4469.6,4469.5,0.4313]
[1758303814677,2.00306884,4469.6,4469.5,0.4313]
[1758303815077,2.00306884,4469.6,4469.5,0.7188]
[1758303815474,1.58366884,4469.6,4469.5,1.0107]
[1758303815773,0.48145618,4469.6,4469.5,1.178]
[1758303815978,0.48145618,4469.6,4469.5,1.58053]
[1758303816174,0.25245618,4469.6,4469.5,1.58053]
[1758303828287,1.06703785,4469.6,4469.5,1.178]
[1758303828494,1.77513785,4469.6,4469.5,1.178]
[1758303828687,1.77513785,4469.6,4469.1,0.4085]
[1758303828688,1.0048,4469.2,4469.1,0.4085]
[1758303828895,2.00313785,4469.2,4469.1,0.4085]
[1758303829094,2.00313785,4469.2,4469.1,0.696]
[1758303829897,2.00313785,4469.2,4469.1,0.9879]
[1758303830102,1.58373785,4469.2,4469.1,0.9879]
[1758303834708,1.58373785,4469.2,4469.1,1.39046]
[1758303836506,2.00313785,4469.2,4469.1,0.9879]
[1758303836697,2.00313785,4469.2,4469.1,1.39046]
[1758303836903,1.58373785,4469.2,4469.1,1.39046]
[1758303838409,2.00313785,4469.2,4469.1,1.39046]
[1758303839104,2.00313785,4469.2,4468.9,0.4471]
[1758303839309,0.9625,4469.0,4468.9,1.12358]
[1758303839509,1.32903785,4469.0,4468.9,1.41778]
[1758303839907,1.04883785,4469.0,4468.9,1.41778]
[1758303842608,1.05193425,4469.0,4468.9,1.41778]
[1758303843111,0.77343425,4469.0,4468.9,1.41778]
[1758303846715,0.25245618,4469.0,4468.9,1.41778]
[1758303847713,0.4038,4469.8,4468.9,1.0152]
[1758303848015,0.2785,4469.8,4469.7,1.0152]
[1758303848212,0.75843077,4469.8,4469.7,1.0152]
[1758303848413,1.55961864,4469.8,4469.7,1.0152]
[1758303848721,1.96341864,4469.8,4469.7,1.0152]
[1758303849019,1.96341864,4469.8,4469.7,0.721]
[1758303849918,1.55961864,4469.8,4469.7,1.41771]
[1758303850218,1.55961864,4469.8,4469.7,1.0152]
[1758303850818,1.96341864,4469.8,4469.7,1.0152]
[1758303852621,1.55961864,4469.8,4469.7,1.41771]
[1758303852820,1.33161864,4469.8,4469.7,1.41771]
[1758303853020,1.33161864,4469.8,4469.5,0.1673]
[1758303853021,1.96341864,4469.8,4469.3,0.4471]
[1758303853217,0.9625,4469.4,4469.1,0.4471]
[1758303853427,0.9625,4469.2,4468.4,0.40262]
[1758303853721,0.9625,4468.5,4468.4,0.4471]
[1758303853912,1.33161864,4468.5,4468.4,1.0152]
[1758303854717,1.73541864,4468.5,4468.4,1.0152]
[1758303855518,1.73541864,4468.5,4468.4,0.721]
[1758303855823,1.73541864,4468.5,4468.4,0.4471]
[1758303856423,0.9625,4468.4,4468.3,0.40264]
[1758303856628,1.73541864,4468.4,4468.3,0.40264]
[1758303856927,1.73541864,4468.4,4468.3,0.84974]
[1758303857623,1.73541864,4468.4,4468.3,1.12364]
[1758303858523,1.73541864,4468.4,4468.3,1.41784]
[1758303858715,1.33161864,4468.4,4468.3,1.41784]
[1758303859322,1.73541864,4468.4,4468.3,0.4471]
[1758303859523,0.5587,4468.1,4468.0,0.4471]
[1758303859719,1.96341864,4468.1,4468.0,0.4471]
[1758303859915,0.9625,4468.0,4467.9,0.67657]
[1758303860230,1.73541864,4468.0,4467.9,0.67657]
[1758303860425,1.73541864,4468.0,4467.9,1.12367]
[1758303863726,1.21443077,4468.0,4467.9,1.12367]
[1758303863927,1.21400209,4468.0,4467.9,1.12367]
[1758303864326,0.81020209,4468.0,4467.9,1.41787]
[1758303868832,0.53000209,4468.0,4467.9,1.41787]
[1758303869534,0.25150209,4468.0,4467.9,1.41787]
[1758303870929,0.25150209,4468.0,4467.8,0.67008]
[1758303870930,0.3894,4467.9,4467.8,0.67008]
[1758303871134,1.21130209,4467.9,4467.8,0.9812]
[1758303871330,1.21130209,4467.9,4467.8,0.4214]
[1758303871524,1.73298675,4467.9,4467.8,0.4214]
[1758303872139,1.73298675,4467.9,4467.8,0.6888]
[1758303872331,1.34358675,4467.9,4467.8,0.9812]
[1758303873038,1.73298675,4467.9,4467.8,0.9812]
[1758303874238,1.73298675,4467.9,4467.8,0.4214]
[1758303874636,1.73298675,4467.9,4467.5,0.5887]
[1758303874835,0.9598,4467.6,4467.5,0.4214]
[1758303875040,1.96098675,4467.6,4467.5,0.4214]
[1758303875246,1.96098675,4467.6,4467.5,0.6888]
[1758303875840,1.96098675,4467.6,4467.5,1.25621]
[1758303877544,1.96098675,4467.6,4467.5,0.8535]
[1758303878134,1.96098675,4467.6,4467.5,1.25621]
[1758303878342,1.27728675,4467.6,4467.5,1.54861]
[1758303878546,1.00118675,4467.6,4467.5,1.54861]
[1758303878740,1.57158675,4467.6,4467.5,1.1459]
[1758303878942,1.96098675,4467.6,4467.5,1.1459]
[1758303879842,1.96922476,4467.6,4467.5,1.1459]
[1758303880143,1.96922476,4467.6,4467.5,1.54861]
[1758303880644,1.57982476,4467.6,4467.5,1.54861]
[1758303881237,1.35182476,4467.6,4467.5,1.54861]
[1758303881438,1.57982476,4467.6,4467.5,1.54861]
[1758303881743,1.28552476,4467.6,4467.5,1.54861]
[1758303883549,1.96922476,4467.6,4467.5,1.1459]
[1758303883947,1.96959001,4467.6,4467.5,1.1459]
[1758303884148,1.96959001,4467.6,4467.5,0.6888]
[1758303884341,1.58019001,4467.6,4467.0,0.5887]
[1758303884643,0.2761,4467.1,4466.9,0.69516]
[1758303884843,0.2761,4467.1,4467.0,1.1459]
[1758303885044,1.286556,4467.1,4467.0,1.54865]
[1758303885243,1.058556,4467.1,4467.0,1.54865]
[1758303885444,1.010456,4467.1,4467.0,1.54865]
[1758303885845,0.782456,4467.1,4467.0,1.54865]
[1758303886044,1.010456,4467.1,4467.0,1.54865]
[1758303887742,0.782456,4467.1,4467.0,1.54865]
[1758303887943,0.26004918,4467.1,4467.0,1.54865]
[1758303888952,0.26004918,4467.1,4467.0,4.75645]
[1758303891146,3.2078,4467.9,4467.0,8.98031]
[1758303891352,0.78216918,4467.8,4467.7,1.38388]
[1758303891844,0.25995717,4467.8,4467.7,1.38388]
[1758303892847,0.53605717,4467.8,4467.7,1.38388]
[1758303893246,0.25995717,4467.8,4467.7,1.38388]
[1758303899846,3.4358,4468.4,4467.8,0.40267]
[1758303900054,3.4358,4468.4,4468.3,0.9512]
[1758303900254,3.95706019,4468.4,4468.3,0.9512]
[1758303900450,1.01446019,4468.4,4468.3,0.9512]
[1758303900648,1.28046019,4468.4,4468.3,0.9512]
[1758303900850,1.65746019,4468.4,4468.3,0.3922]
[1758303901455,1.65746019,4468.4,4468.3,0.79483]
[1758303901657,1.65746019,4468.4,4468.3,1.07123]
[1758303902059,1.65746019,4468.4,4468.3,1.35383]
[1758303902360,0.74926019,4468.4,4468.3,1.35383]
[1758303903261,0.99140087,4468.4,4468.3,1.35383]
[1758303903859,1.25660087,4468.4,4468.3,1.35383]
[1758303904761,1.52260087,4468.4,4468.3,1.35383]
[1758303905163,0.99140087,4468.4,4468.3,1.35383]
[1758303906562,0.76340087,4468.4,4468.3,1.35383]
[1758303909065,3.2078,4469.0,4468.9,0.96158]
[1758303909267,3.72876804,4469.0,4468.9,1.35378]
[1758303909566,3.473,4469.8,4469.7,0.9512]
[1758303909772,4.48783206,4469.8,4469.7,0.9512]
[1758303910064,4.86483206,4469.8,4469.7,0.6686]
[1758303910266,4.86483206,4469.8,4469.0,0.1694]
[1758303910470,0.9082,4469.2,4469.1,0.79475]
[1758303910663,1.42903206,4469.2,4469.1,0.3922]
[1758303911064,1.42903206,4469.2,4469.1,0.6686]
[1758303911365,0.9082,4469.2,4469.1,0.6686]
[1758303912263,0.5312,4469.2,4469.1,0.9512]
[1758303913971,1.05142608,4469.2,4469.1,1.35375]
[1758303914273,0.5312,4469.2,4469.1,1.35375]
[1758303915366,1.0515379,4469.2,4469.1,1.35375]
[1758303916271,0.5312,4469.2,4469.1,1.35375]
[1758303916474,1.05158424,4469.2,4469.1,1.35375]
[1758303916669,0.2652,4469.7,4469.6,0.79471]
[1758303916974,1.01360472,4469.7,4469.6,1.35371]
[1758303917565,1.01360472,4469.7,4469.6,0.9512]
[1758303917766,1.27960472,4469.7,4469.6,0.9512]
[1758303918074,1.27960472,4469.7,4469.6,1.35371]
[1758303918569,1.65660472,4469.7,4469.6,0.9512]
[1758303918873,1.65660472,4469.7,4469.6,0.3922]
[1758303919476,1.65660472,4469.7,4469.6,0.6686]
[1758303920982,1.89533529,4469.7,4469.6,0.6686]
[1758303923074,1.89533529,4469.7,4469.6,0.3922]
[1758303923784,0.377,4469.4,4469.1,0.3922]
[1758303924078,0.5312,4469.2,4469.0,0.79477]
[1758303924272,1.89533529,4469.1,4469.0,0.79477]
[1758303924679,1.89533529,4469.1,4468.4,0.3922]
[1758303924680,0.5312,4468.5,4468.4,0.3922]
[1758303924876,1.89533529,4468.5,4468.4,0.3922]
[1758303926073,0.5312,4468.2,4468.1,0.3922]
[1758303926280,1.89533529,4468.2,4467.9,0.3922]
[1758303926481,0.9082,4467.9,4467.8,1.07127]
[1758303926682,1.29033529,4467.9,4467.8,1.35387]
[1758303926870,1.51833529,4467.9,4467.8,1.35387]
[1758303929188,0.75913529,4467.9,4467.8,1.35387]
[1758303929986,0.23873057,4467.9,4467.8,5.57769]
[1758303930779,0.23873057,4467.9,4467.8,5.35387]
[1758303935381,0.522,4469.3,4469.2,0.9634]
[1758303935685,0.522,4469.3,4469.0,0.1604]
[1758303935686,0.4861,4469.5,4469.4,1.36593]
[1758303935884,1.00868182,4469.5,4469.4,1.36593]
[1758303936080,0.78068182,4469.5,4469.4,1.36593]
[1758303937586,0.52258182,4469.5,4469.4,1.36593]
[1758303937785,3.7078,4470.0,4469.9,0.9634]
[1758303937786,4.1939,4470.0,4469.9,0.9634]
[1758303937989,4.71656087,4470.0,4469.9,0.9634]
[1758303938189,4.98046087,4470.0,4469.9,0.9634]
[1758303938888,4.98046087,4470.0,4469.0,0.1604]
[1758303938889,9.71158087,4470.0,4469.1,0.4282]
[1758303939090,9.71158087,4470.0,4468.4,3.2078]
[1758303939091,0.8866,4468.7,4468.6,0.4282]
[1758303941482,3.7298,4469.2,4469.1,0.277]
[1758303941683,4.48036077,4469.2,4469.1,0.9634]
[1758303944490,4.84496077,4469.2,4469.1,0.4282]
[1758303945393,4.84496077,4469.2,4469.1,0.7052]
[1758303947295,5.07421023,4469.2,4469.1,0.7052]
[1758303948294,4.70961023,4469.2,4469.1,0.9634]
[1758303948897,5.07421023,4469.2,4469.1,0.9634]
[1758303950192,5.07421023,4469.2,4469.1,0.7052]
[1758303950398,0.522,4468.7,4468.6,1.1078]
[1758303950600,1.50181023,4468.7,4468.6,1.366]
[1758303952498,1.23791023,4468.7,4468.6,1.366]
[1758303952799,0.97981023,4468.7,4468.6,1.366]
[1758303953194,0.97981023,4468.7,4468.6,4.5738]
[1758303955999,0.97981023,4468.7,4468.6,1.366]
[1758303958604,0.75056077,4468.7,4468.6,1.366]
[1758303958905,0.98195431,4468.7,4468.6,1.366]
[1758303959101,1.24005431,4468.7,4468.6,1.366]
[1758303959705,1.50065431,4468.7,4468.6,0.9634]
[1758303959905,1.62445431,4468.7,4468.6,0.9634]
[1758303960106,1.62445431,4468.7,4468.6,1.366]
[1758303960307,1.27265431,4468.7,4468.6,1.366]
[1758303960710,1.62445431,4468.7,4468.6,0.8308]
[1758303961606,1.62445431,4468.7,4468.6,0.4282]
[1758303961805,4.83225431,4468.7,4468.4,0.0223]
[1758303962008,0.9909,4468.5,4468.4,0.0223]
[1758303962305,1.74485431,4468.5,4468.0,0.40265]
[1758303962507,1.74485431,4468.5,4468.0,0.81105]
[1758303962508,0.88,4468.1,4468.0,0.81105]
[1758303962707,1.63395431,4468.1,4468.0,0.81105]
[1758303963112,1.63395431,4468.1,4468.0,1.07295]
[1758303963311,1.63395431,4468.1,4468.0,1.22915]
[1758303964214,1.63395431,4468.1,4468.0,0.8265]
[1758303964515,1.63395431,4468.1,4468.0,1.22916]
[1758303964813,1.63395431,4468.1,4468.0,0.8265]
[1758303965308,1.63395431,4468.1,4468.0,1.22916]
[1758303966911,1.63395431,4468.1,4468.0,0.8265]
[1758303967111,1.63395431,4468.1,4467.8,0.4307]
[1758303967318,0.88,4467.9,4467.8,0.4307]
[1758303967609,5.06975431,4467.9,4467.8,0.0223]
[1758303967811,5.06975431,4467.9,4466.3,1.00702]
[1758303967812,9.29357431,4467.9,4466.3,0.4084]
[1758303968110,9.29357431,4467.9,4466.0,0.1562]
[1758303968111,0.3295,4466.3,4466.0,0.1562]
[1758303968315,1.83965431,4466.2,4465.6,0.40287]
[1758303968618,0.5282,4465.8,4465.7,0.6703]
[1758303968807,1.28215431,4465.8,4465.7,0.6703]
[1758303969207,0.75959354,4465.8,4465.7,0.9408]
[1758303973120,0.49899354,4465.8,4465.7,0.9408]
[1758303973820,0.2676,4465.8,4465.7,0.9408]
[1758303974007,1.0857,4465.8,4465.7,0.9408]
[1758303974214,0.7562,4465.8,4465.4,3.2078]
[1758303974420,0.7562,4465.8,4465.4,0.4084]
[1758303974421,0.5282,4465.5,4465.4,0.4084]
[1758303974721,3.2078,4465.7,4465.2,0.4084]
[1758303974722,0.8577,4465.3,4465.2,0.4084]
[1758303975120,0.8577,4465.3,4465.2,0.6703]
[1758303975322,0.8577,4465.3,4465.2,0.4084]
[1758303975617,0.8577,4465.3,4465.2,0.6703]
[1758303975819,0.5282,4465.3,4465.2,0.6703]
[1758303976020,0.5282,4465.3,4465.2,0.9408]
[1758303976415,0.7562,4465.3,4465.2,0.9408]
[1758303977920,1.0857,4465.3,4465.2,0.9408]
[1758303978321,1.0857,4465.3,4465.2,0.6703]
[1758303979822,1.0857,4465.3,4465.2,1.07321]
[1758303980017,1.0857,4465.3,4465.2,0.6703]
[1758303980322,1.0857,4465.3,4465.2,0.4084]
[1758303981520,1.0857,4465.3,4465.2,0.81131]
[1758303981826,1.0857,4465.3,4465.2,1.07321]